fUST/lending_fUST_20260620
["ID","MTS","AMOUNT","RATE_DAILY","PERIOD"]
[425792383,1781894605000,2842.0,0.00018726,30]
[425792386,1781894606000,2842.0,0.00018726,30]
[425792388,1781894606000,2842.0,0.00018726,30]
[425792389,1781894606000,2842.0,0.00018726,30]
[425792387,1781894606000,2842.0,0.00018726,30]
[425792394,1781894607000,2842.0,0.00018726,30]
[425792393,1781894607000,2842.0,0.00018726,30]
[425792392,1781894607000,2842.0,0.00018726,30]
[425792391,1781894607000,2842.0,0.00018726,30]
[425792390,1781894607000,2842.0,0.00018726,30]
[425792395,1781894608000,2842.0,0.00018726,30]
[425792397,1781894608000,2842.0,0.00018726,30]
[425792396,1781894608000,2842.0,0.00018726,30]
[425792398,1781894609000,2842.0,0.00018726,30]
[425792399,1781894610000,2842.0,0.00018726,30]
[425792400,1781894612000,2842.0,0.00018726,30]
[425792401,1781894613000,2842.0,0.00018726,30]
[425792402,1781894615000,2842.0,0.00018726,30]
[425792403,1781894618000,2842.0,0.00018726,30]
[425792404,1781894621000,2842.0,0.00018726,30]
[425792405,1781894623000,2842.0,0.00018726,30]
[425792406,1781894627000,2860.70472985,0.00018726,30]
[425792409,1781894814000,152.0,0.00018778,30]
[425792444,1781895032000,-531.71175823,0.00014611,2]
[425792439,1781895032000,-152.0,0.00014477,7]
[425792445,1781895032000,-945.26534796,0.00014611,2]
[425792443,1781895032000,-295.39542124,0.00014611,2]
[425792447,1781895032000,-923.62747257,0.00014611,2]
[425792442,1781895032000,-152.0,0.00014477,7]
[425792475,1781895038000,-500.0,0.00015425,2]
[425792472,1781895038000,-500.0,0.00015425,2]
[425792479,1781895038000,-500.0,0.00015425,2]
[425792469,1781895038000,-166.88,0.00015416,3]
[425792471,1781895038000,-280.19258823,0.00015425,2]
[425792470,1781895038000,-500.69,0.00015416,3]
[425792478,1781895038000,-500.0,0.00015425,2]
[425792468,1781895038000,-333.76,0.00015416,3]
[425792476,1781895038000,-500.0,0.00015425,2]
[425792464,1781895038000,-251.96207642,0.0001538,2]
[425792467,1781895038000,-1258.55057171,0.0001538,2]
[425792466,1781895038000,-806.27864454,0.0001538,2]
[425792462,1781895038000,-1211.06633219,0.00014655,2]
[425792460,1781895038000,-442.99999999,0.00014611,2]
[425792461,1781895038000,-108.87265652,0.00014611,2]
[425792463,1781895038000,-300.0,0.00015325,2]
[425792465,1781895038000,-453.53173755,0.0001538,2]
[425792474,1781895038000,-500.0,0.00015425,2]
[425792496,1781895038000,-1449.97840101,0.00015426,2]
[425792473,1781895038000,-500.0,0.00015425,2]
[425792495,1781895038000,-50451.28858013,0.00015426,2]
[425792494,1781895038000,-18290.9674018,0.00015426,2]
[425792491,1781895038000,-500.0,0.00015425,2]
[425792488,1781895038000,-500.0,0.00015425,2]
[425792477,1781895038000,-500.0,0.00015425,2]
[425792483,1781895038000,-500.0,0.00015425,2]
[425792484,1781895038000,-500.0,0.00015425,2]
[425792487,1781895038000,-500.0,0.00015425,2]
[425792492,1781895038000,-500.0,0.00015425,2]
[425792482,1781895038000,-314.92504732,0.00015425,2]
[425792486,1781895038000,-500.0,0.00015425,2]
[425792489,1781895038000,-500.0,0.00015425,2]
[425792490,1781895038000,-508.7495434,0.00015425,2]
[425792493,1781895038000,-500.0,0.00015425,2]
[425792481,1781895038000,-500.0,0.00015425,2]
[425792480,1781895038000,-500.0,0.00015425,2]
[425792485,1781895038000,-500.0,0.00015425,2]
[425792537,1781895043000,-3128.59410575,0.00015426,2]
[425792538,1781895044000,-2439.82511158,0.00015426,2]
[425792553,1781895046000,-1782.78184353,0.00015426,2]
[425792552,1781895046000,-2452.93688462,0.00015426,2]
[425792551,1781895046000,-968.63862703,0.00015426,2]
[425792550,1781895046000,-19211.11784142,0.00015426,2]
[425792554,1781895047000,-111326.65701036,0.00015426,2]
[425792557,1781895047000,-8078.709267,0.00015426,2]
[425792555,1781895047000,-5474.20128519,0.00015426,2]
[425792556,1781895047000,-6320.20764113,0.00015426,2]
[425792561,1781895452000,6143.19498621,7.6e-05,2]
[425792929,1781896241000,-167.63883816,0.00012999,2]
[425792925,1781896241000,-300.0,0.00012998,2]
[425792923,1781896241000,-3615.42861068,0.00012,2]
[425792927,1781896241000,-500.0,0.00012999,2]
[425792933,1781896241000,-322.86,0.00012999,2]
[425792935,1781896241000,-189.93628803,0.00012999,2]
[425792937,1781896241000,-3870.98861118,0.00013,2]
[425792931,1781896241000,-534.99167192,0.00012999,2]
[425793360,1781896247000,-1343.23491219,0.00013,2]
[425793435,1781897438000,-294.359901,0.00012168,2]
[425793441,1781897438000,-151.0,0.00012992,2]
[425793439,1781897438000,-151.0,0.00012992,2]
[425793436,1781897438000,-459.47740796,0.00012168,2]
[425793433,1781897438000,-300.0,0.00012167,2]
[425793444,1781897438000,-151.0,0.00012992,2]
[425793431,1781897438000,-629.03060454,0.0001156,2]
[425793432,1781897438000,-981.87745928,0.0001156,2]
[425793429,1781897438000,-196.57206392,0.0001156,2]
[425793430,1781897438000,-353.82971506,0.0001156,2]
[425793434,1781897438000,-257.56491337,0.00012168,2]
[425793438,1781897438000,-151.0,0.00012992,2]
[425793437,1781897438000,-4779.1173059,0.000129,2]
[425793440,1781897438000,-151.0,0.00012992,2]
[425793454,1781897438000,-16160.40515672,0.00013,2]
[425793453,1781897438000,-500.0,0.00012999,2]
[425793452,1781897438000,-645.3300339,0.00012999,2]
[425793447,1781897438000,-151.0,0.00012992,2]
[425793449,1781897438000,-500.0,0.00012999,2]
[425793450,1781897438000,-500.0,0.00012999,2]
[425793451,1781897438000,-373.17459412,0.00012999,2]
[425793445,1781897438000,-151.0,0.00012992,2]
[425793443,1781897438000,-151.0,0.00012992,2]
[425793442,1781897438000,-151.0,0.00012992,2]
[425793448,1781897438000,-188.75178884,0.00012992,2]
[425793446,1781897438000,-151.0,0.00012992,2]
[425793455,1781897440000,-20190.73607181,0.00013,2]
[425793458,1781897443000,-500.0,0.00013,2]
[425793502,1781897447000,-1599.34221028,0.00013,2]
[425793503,1781897447000,-12005.70799434,0.00013,2]
[425793504,1781897473000,-3091.30282292,0.00013,2]
[425793543,1781898482000,155.21875911,9.941e-05,2]
[425793546,1781898552000,-274.4696311,0.00010146,2]
[425793603,1781898631000,-41.40201209,0.00011936,2]
[425793602,1781898631000,-407.61971951,0.00011936,2]
[425793600,1781898631000,-188.8242684,0.00011936,2]
[425793607,1781898632000,-585.0639554,0.00012403,2]
[425793605,1781898632000,-727.16446392,0.00011936,2]
[425793606,1781898632000,-200.0,0.00012246,2]
[425793604,1781898632000,-424.44909592,0.00011936,2]
[425793608,1781898632000,-300.0,0.00012999,2]
[425793609,1781898632000,-3036.78449362,0.00013,2]
[425793610,1781898632000,-1672.84921985,0.00013,2]
[425793614,1781898632000,-936.46628585,0.00013,7]
[425793613,1781898632000,-218.23855884,0.00013,7]
[425793612,1781898632000,-3920.61009021,0.00013,2]
[425793618,1781898632000,-218.23855884,0.0001326,7]
[425793611,1781898632000,-5986.8511,0.00013,2]
[425793619,1781898632000,-3168.32350385,0.0001326,7]
[425793623,1781898632000,-165.1894,0.00013607,2]
[425793625,1781898632000,-289.42888302,0.0001365,7]
[425793622,1781898632000,-2327.14315814,0.00013597,2]
[425793624,1781898632000,-218.23855884,0.0001365,7]
[425793620,1781898632000,-1421.1263744,0.00013597,2]
[425793615,1781898632000,-2231.857218,0.00013,7]
[425793617,1781898632000,-592.17682988,0.00013258,2]
[425793616,1781898632000,-7.82317012,0.00013258,2]
[425793621,1781898632000,-433.45811007,0.00013597,2]
[425793685,1781898638000,-500.0,0.00013698,2]
[425793693,1781898638000,-500.0,0.00013698,2]
[425793695,1781898638000,-500.0,0.00013698,2]
[425793691,1781898638000,-321.97362574,0.00013698,2]
[425793689,1781898638000,-500.0,0.00013698,2]
[425793687,1781898638000,-500.0,0.00013698,2]
[425793683,1781898638000,-500.0,0.00013698,2]
[425793671,1781898638000,-296.51025489,0.00013698,2]
[425793681,1781898638000,-119.22792385,0.00013698,2]
[425793675,1781898638000,-153.48974511,0.00013698,2]
[425793677,1781898638000,-500.0,0.00013698,2]
[425793668,1781898638000,-417.15472785,0.0001365,7]
[425793666,1781898638000,-2878.89462083,0.0001365,7]
[425793697,1781898638000,-500.0,0.00013698,2]
[425793679,1781898638000,-380.77207615,0.00013698,2]
[425793698,1781898638000,-500.0,0.00013698,2]
[425793669,1781898638000,-500.0,0.00013698,2]
[425793712,1781898638000,-500.0,0.00013698,2]
[425793732,1781898638000,-151.0,0.00013699,2]
[425793728,1781898638000,-301.16871441,0.00013699,2]
[425793722,1781898638000,-165.29009,0.00013699,2]
[425793734,1781898638000,-748.2272528,0.00013699,2]
[425793720,1781898638000,-5816.8704689,0.00013699,2]
[425793726,1781898638000,-240.494186,0.00013699,2]
[425793730,1781898638000,-151.0,0.00013699,2]
[425793700,1781898638000,-1253.25,0.00013698,2]
[425793716,1781898638000,-500.0,0.00013698,2]
[425793714,1781898638000,-558.55850572,0.00013698,2]
[425793718,1781898638000,-217.50029529,0.00013698,2]
[425793702,1781898638000,-1253.25,0.00013698,2]
[425793706,1781898638000,-1253.25,0.00013698,2]
[425793710,1781898638000,-633.04341449,0.00013698,2]
[425793709,1781898638000,-1253.25,0.00013698,2]
[425793724,1781898638000,-400.512583,0.00013699,2]
[425793955,1781898640000,-871.19429122,0.00013699,2]
[425794297,1781898643000,-176.9711757,0.00013921,2]
[425794298,1781898643000,-318.54811626,0.00013921,2]
[425794278,1781898643000,-151.0,0.00013699,2]
[425794273,1781898643000,-1063.52359401,0.00013699,2]
[425794274,1781898643000,-3299.939031,0.00013699,2]
[425794239,1781898643000,-635.60939374,0.00013699,2]
[425794265,1781898643000,-283.91909324,0.00013699,2]
[425794276,1781898643000,-3299.939031,0.00013699,2]
[425794289,1781898643000,-3299.939031,0.00013921,2]
[425794242,1781898643000,-443.0,0.00013699,2]
[425794244,1781898643000,-317.989,0.00013699,2]
[425794267,1781898643000,-1045.15565334,0.00013699,2]
[425794294,1781898643000,-820.47686257,0.00013921,2]
[425794271,1781898643000,-1191.25978365,0.00013699,2]
[425794282,1781898643000,-500.0,0.00013798,2]
[425794295,1781898643000,-1280.71310267,0.00013921,2]
[425794306,1781898643000,-218.23855884,0.0001404,7]
[425794308,1781898643000,-3168.32350385,0.0001404,7]
[425794310,1781898643000,-3299.939031,0.0001404,2]
[425794302,1781898643000,-883.97102262,0.00013921,2]
[425794312,1781898643000,-3087.89574023,0.0001404,2]
[425794304,1781898643000,-600.0,0.00013971,2]
[425794280,1781898643000,-151.0,0.00013699,2]
[425794300,1781898643000,-566.30776224,0.00013921,2]
[425794287,1781898643000,-3299.939031,0.00013921,2]
[425794292,1781898643000,-461.5182352,0.00013921,2]
[425794285,1781898643000,-3299.939031,0.00013921,2]
[425794290,1781898643000,-256.39901955,0.00013921,2]
[425794284,1781898643000,-3299.939031,0.00013921,2]
[425794279,1781898643000,-151.0,0.00013699,2]
[425794606,1781898646000,-212.04329077,0.0001404,2]
[425794608,1781898646000,-437.95670923,0.0001404,2]
[425794632,1781898646000,-2861.98232177,0.0001404,2]
[425794637,1781898646000,-500.0,0.00014072,2]
[425794639,1781898646000,-165.1894,0.0001418,2]
[425794641,1781898646000,-420.0,0.00014256,2]
[425794643,1781898646000,-492.46663539,0.00014346,2]
[425794635,1781898646000,-3299.939031,0.0001404,2]
[425795849,1781898941000,152.0,0.00018806,30]
[425795856,1781899072000,388.11199717,9.5e-05,2]
[425795919,1781899832000,-102.505,0.00012329,2]
[425795918,1781899832000,-218.0,0.00012328,2]
[425797173,1781901055000,-140.31088689,0.00012329,2]
[425797170,1781901055000,-810.91646986,0.00012329,2]
[425797172,1781901055000,-752.53,0.00012329,2]
[425797168,1781901055000,-397.495,0.00012329,2]
[425797169,1781901055000,-1083.64,0.00012329,2]
[425797167,1781901055000,-274.4696311,0.00011962,2]
[425797171,1781901055000,-92.12353014,0.00012329,2]
[425797174,1781901071000,-486.79911311,0.00012329,2]
[425797176,1781901088000,-522.59,0.00012329,2]
[425797207,1781902238000,-522.59,0.00012329,2]
[425797208,1781902238000,-435.49,0.00012329,2]
[425797209,1781902238000,-280.27621133,0.00012329,2]
[425797206,1781902238000,-343.76026201,0.00012329,2]
[425797210,1781902241000,-82.63378867,0.00012329,2]
[425797211,1781902241000,-302.43,0.00012329,2]
[425797216,1781902241000,-166.0,0.00012329,2]
[425797213,1781902241000,-210.02,0.00012329,2]
[425797218,1781902241000,-156.0,0.00012329,2]
[425797212,1781902241000,-252.02,0.00012329,2]
[425797217,1781902241000,-166.0,0.00012329,2]
[425797214,1781902241000,-175.01,0.00012329,2]
[425797221,1781902241000,-329.081505,0.00013699,2]
[425797220,1781902241000,-2942.57712247,0.00013,2]
[425797223,1781902241000,-306.06,0.00014248,2]
[425797219,1781902241000,-2205.74861163,0.00012329,2]
[425797222,1781902241000,-152.0,0.00014041,7]
[425797215,1781902241000,-875.1,0.00012329,2]
[425797227,1781902242000,-306.06,0.00014435,2]
[425797224,1781902242000,-151.0,0.00014346,2]
[425797225,1781902242000,-151.0,0.00014346,2]
[425797231,1781902242000,-3168.32350388,0.0001456,7]
[425797226,1781902242000,-151.0,0.00014346,2]
[425797229,1781902242000,-166.277812,0.00014534,7]
[425797235,1781902242000,-189.78448419,0.00014591,2]
[425797230,1781902242000,-218.23855885,0.0001456,7]
[425797236,1781902242000,-46.78227176,0.00014599,2]
[425797232,1781902242000,-151.0,0.00014591,2]
[425797233,1781902242000,-151.0,0.00014591,2]
[425797234,1781902242000,-151.0,0.00014591,2]
[425797228,1781902242000,-703.77412748,0.00014477,7]
[425797266,1781902243000,-163.331339,0.00014599,2]
[425797264,1781902243000,-211.50572824,0.00014599,2]
[425797276,1781902243000,-1087.24816582,0.00014599,2]
[425797268,1781902243000,-163.331339,0.00014599,2]
[425797270,1781902243000,-163.331339,0.00014599,2]
[425797275,1781902243000,-151.0,0.00014599,2]
[425797272,1781902243000,-163.331339,0.00014599,2]
[425797273,1781902243000,-151.0,0.00014599,2]
[425797559,1781902247000,-1319.975612,0.00014599,2]
[425797558,1781902247000,-1319.975612,0.00014599,2]
[425797556,1781902247000,-1319.975612,0.00014599,2]
[425797561,1781902247000,-1319.975612,0.00014599,2]
[425797554,1781902247000,-1319.975612,0.00014599,2]
[425797563,1781902247000,-1204.64390741,0.00014599,2]
[425797552,1781902247000,-232.72744618,0.00014599,2]
[425798538,1781903431000,-277.45811007,0.00012229,2]
[425798536,1781903431000,-156.0,0.00012229,2]
[425799139,1781903446000,-120.03688993,0.00012229,2]
[425799142,1781903446000,-263.13,0.00012329,2]
[425799140,1781903446000,-315.76,0.00012329,2]
[425799143,1781903446000,-219.27,0.00012329,2]
[425799144,1781903446000,-182.73,0.00012329,2]
[425799146,1781903446000,-761.4,0.00012329,2]
[425799147,1781903446000,-289.11083361,0.00013699,2]
[425799145,1781903446000,-152.27,0.00012329,2]
[425799154,1781903623000,152.0,0.00018851,30]
[425799155,1781903644000,152.0,0.00018851,30]
[425799229,1781904632000,-248.81055,0.00013699,2]
[425799230,1781904632000,-41.1573024,0.00013791,2]
[425799349,1781904640000,-616.92866392,0.00014098,2]
[425799353,1781904640000,-500.0,0.00014098,2]
[425799347,1781904640000,-443.40748088,0.00014098,2]
[425799341,1781904640000,-238.332,0.00013915,2]
[425799337,1781904640000,-148.3026976,0.00013791,2]
[425799343,1781904640000,-306.1,0.0001397,2]
[425799339,1781904640000,-189.45,0.00013793,2]
[425799358,1781904640000,-621.4548181,0.00014098,2]
[425799345,1781904640000,-306.08,0.00014058,2]
[425799357,1781904640000,-500.0,0.00014098,2]
[425799355,1781904640000,-286.52109623,0.00014098,2]
[425799370,1781904640000,-151.0,0.00014098,2]
[425799377,1781904640000,-2712.34674091,0.00014099,2]
[425799364,1781904640000,-3713.19395106,0.00014098,2]
[425799360,1781904640000,-160.38523661,0.00014098,2]
[425799368,1781904640000,-151.0,0.00014098,2]
[425799362,1781904640000,-499.99999999,0.00014098,2]
[425799366,1781904640000,-151.0,0.00014098,2]
[425799371,1781904640000,-151.0,0.00014098,2]
[425799375,1781904640000,-151.0,0.00014098,2]
[425799373,1781904640000,-151.0,0.00014098,2]
[425799351,1781904640000,-500.0,0.00014098,2]
[425799978,1781904646000,-4472.92324532,0.00014099,2]
[425800325,1781904668000,4107.19044944,0.00013999,2]
[425800326,1781904705000,152.0,0.00018896,30]
[425800328,1781904726000,152.0,0.00018896,30]
[425800329,1781904746000,152.0,0.00018896,30]
[425800336,1781904837000,152.0,0.00018896,30]
[425800358,1781905623000,152.0,0.00018926,30]
[425800369,1781905832000,-3141.34411392,0.00012932,2]
[425800371,1781905832000,-35.96489008,0.00013599,2]
[425800372,1781905832000,-175.06061524,0.00013599,2]
[425800370,1781905832000,-190.665,0.00013523,2]
[425800377,1781905832000,-500.0,0.00013798,2]
[425800374,1781905832000,-262.26966563,0.00013798,2]
[425800376,1781905832000,-640.49941074,0.00013798,2]
[425800375,1781905832000,-180.16164646,0.00013798,2]
[425800378,1781905832000,-987.16062393,0.00013799,2]
[425800373,1781905832000,-254.848038,0.00013699,2]
[425800385,1781905838000,-1675989.23289671,0.00013799,2]
[425800384,1781905838000,-97753.0271623,0.00013799,2]
[425800441,1781905848000,-455.82,0.00013799,2]
[425800447,1781906133000,152.0,0.00018926,30]
[425800455,1781906452000,152.0,0.00018938,30]
[425800505,1781907032000,-500.0,0.00013698,2]
[425800503,1781907032000,-238.45685214,0.00013599,2]
[425800508,1781907032000,-500.0,0.00013698,2]
[425800507,1781907032000,-227.45804901,0.00013698,2]
[425800510,1781907032000,-500.0,0.00013698,2]
[425800501,1781907032000,-357.9773558,0.00012791,2]
[425800512,1781907032000,-500.0,0.00013698,2]
[425800514,1781907032000,-500.0,0.00013698,2]
[425800527,1781907032000,-997.32222237,0.00013698,2]
[425800518,1781907032000,-500.0,0.00013698,2]
[425800521,1781907032000,-640.58071433,0.00013698,2]
[425800516,1781907032000,-500.0,0.00013698,2]
[425800523,1781907032000,-35521.99841423,0.00013698,2]
[425800525,1781907032000,-11543.26340214,0.00013698,2]
[425800530,1781907032000,-25935.88531606,0.00013698,2]
[425800532,1781907032000,-1348.72822786,0.00013698,2]
[425800520,1781907032000,-500.0,0.00013698,2]
[425800661,1781907038000,-487.0,0.00013699,2]
[425800657,1781907038000,-487.0,0.00013699,2]
[425800659,1781907038000,-487.0,0.00013699,2]
[425800654,1781907038000,-487.0,0.00013699,2]
[425800656,1781907038000,-487.0,0.00013699,2]
[425800649,1781907038000,-487.0,0.00013699,2]
[425800645,1781907038000,-487.0,0.00013699,2]
[425800646,1781907038000,-487.0,0.00013699,2]
[425800652,1781907038000,-487.0,0.00013699,2]
[425800639,1781907038000,-970.91547704,0.00013699,2]
[425800641,1781907038000,-487.0,0.00013699,2]
[425800651,1781907038000,-487.0,0.00013699,2]
[425800637,1781907038000,-248.8105504,0.00013699,2]
[425800636,1781907038000,-97040.90716747,0.00013698,2]
[425800620,1781907038000,-263932.92493405,0.00013698,2]
[425800663,1781907038000,-487.0,0.00013699,2]
[425800643,1781907038000,-487.0,0.00013699,2]
[425800668,1781907038000,-693.45,0.00013699,2]
[425800701,1781907038000,-1044.37,0.00013798,2]
[425800665,1781907038000,-487.0,0.00013699,2]
[425800703,1781907038000,-1044.37,0.00013798,2]
[425800666,1781907038000,-487.0,0.00013699,2]
[425800695,1781907038000,-1044.37,0.00013798,2]
[425800693,1781907038000,-1044.37,0.00013798,2]
[425800691,1781907038000,-1044.37,0.00013798,2]
[425800687,1781907038000,-1044.37,0.00013798,2]
[425800685,1781907038000,-1044.37,0.00013798,2]
[425800699,1781907038000,-1044.37,0.00013798,2]
[425800689,1781907038000,-1044.37,0.00013798,2]
[425800683,1781907038000,-1044.37,0.00013798,2]
[425800682,1781907038000,-201.22444736,0.00013798,2]
[425800672,1781907038000,-500.0,0.00013798,2]
[425800680,1781907038000,-504.32388091,0.00013798,2]
[425800678,1781907038000,-500.0,0.00013798,2]
[425800676,1781907038000,-500.0,0.00013798,2]
[425800670,1781907038000,-500.0,0.00013798,2]
[425800697,1781907038000,-1044.37,0.00013798,2]
[425800674,1781907038000,-500.0,0.00013798,2]
[425800733,1781907039000,-223.1478677,0.00013799,2]
[425800730,1781907039000,-500.0,0.00013798,2]
[425800746,1781907039000,-164.38736595,0.00014098,2]
[425800737,1781907039000,-500.0,0.00014072,2]
[425800748,1781907039000,-593.78703048,0.00014307,2]
[425800735,1781907039000,-600.0,0.0001387,2]
[425800731,1781907039000,-235.4880464,0.00013798,2]
[425800739,1781907039000,-237.431703,0.00014079,2]
[425800750,1781907039000,-507.53336461,0.00014346,2]
[425800728,1781907039000,-1044.58129686,0.00013798,2]
[425800709,1781907039000,-1044.37,0.00013798,2]
[425800722,1781907039000,-1044.37,0.00013798,2]
[425800724,1781907039000,-1044.37,0.00013798,2]
[425800718,1781907039000,-1044.37,0.00013798,2]
[425800716,1781907039000,-1044.37,0.00013798,2]
[425800714,1781907039000,-1044.37,0.00013798,2]
[425800712,1781907039000,-1044.37,0.00013798,2]
[425800710,1781907039000,-1044.37,0.00013798,2]
[425800707,1781907039000,-1044.37,0.00013798,2]
[425800705,1781907039000,-1044.37,0.00013798,2]
[425800743,1781907039000,-362.80829729,0.00014098,2]
[425800720,1781907039000,-1044.37,0.00013798,2]
[425800745,1781907039000,-566.32107654,0.00014098,2]
[425800726,1781907039000,-1044.37,0.00013798,2]
[425800752,1781907039000,-152.0,0.00014561,7]
[425800741,1781907039000,-317.45726013,0.00014098,2]
[425800802,1781907039000,-1158.42660359,0.00015,2]
[425800800,1781907039000,-759.00927368,0.00015,2]
[425800798,1781907039000,-3493.32731015,0.00015,2]
[425800795,1781907039000,-6406.67268985,0.00015,2]
[425800793,1781907039000,-509.86748909,0.00014973,2]
[425800784,1781907039000,-157.74,0.00014754,2]
[425800780,1781907039000,-194.563,0.00014698,2]
[425800781,1781907039000,-156.82,0.00014722,2]
[425800788,1781907039000,-703.77412748,0.00014767,7]
[425800792,1781907039000,-509.86748909,0.00014885,2]
[425800785,1781907039000,-509.86748909,0.00014756,2]
[425800778,1781907039000,-889.412,0.00014698,2]
[425800776,1781907039000,-445.0,0.00014698,2]
[425800774,1781907039000,-1841.0,0.00014698,2]
[425800772,1781907039000,-958.0,0.00014698,2]
[425800754,1781907039000,-160216.28660113,0.00014598,2]
[425800768,1781907039000,-166.707,0.00014698,2]
[425800770,1781907039000,-1418.0,0.00014698,2]
[425800766,1781907039000,-151.145,0.00014698,2]
[425800759,1781907039000,-237.431703,0.00014672,2]
[425800757,1781907039000,-156.06,0.00014638,2]
[425800756,1781907039000,-155.3,0.00014613,2]
[425800789,1781907039000,-757.09346172,0.00014774,2]
[425800992,1781907041000,-500.0,0.00013798,2]
[425800994,1781907041000,-500.0,0.00013798,2]
[425800998,1781907041000,-1714.65,0.00015,2]
[425800996,1781907041000,-500.0,0.00013798,2]
[425801001,1781907041000,-5163.01727035,0.00015,2]
[425801003,1781907041000,-7389.30572965,0.00015028,2]
[425801326,1781907043000,-1930.04165381,0.00015028,2]
[425801488,1781907046000,-680.65261654,0.00015028,2]
[425801489,1781907046000,-160.0,0.00015028,2]
[425801487,1781907046000,-183.58876594,0.00013697,2]
[425801492,1781907046000,-2000.0,0.00015029,3]
[425801490,1781907046000,-237.67331526,0.00015028,2]
[425801493,1781907046000,-186.518827,0.00015068,2]
[425801496,1781907046000,-4590.01242646,0.00015129,2]
[425801497,1781907046000,-277.66096956,0.00015129,2]
[425801495,1781907046000,-19700.34337284,0.00015129,2]
[425801494,1781907046000,-151.0,0.000151,2]
[425801491,1781907046000,-2000.0,0.00015029,2]
[425801589,1781908232000,-7273.97896601,0.000158,2]
[425801594,1781908232000,-177.02342173,0.00016164,2]
[425801596,1781908232000,-703.77412751,0.00016214,7]
[425801597,1781908232000,-151.0,0.000163,2]
[425801598,1781908232000,-193.97,0.00016329,2]
[425801595,1781908232000,-306.05,0.00016206,2]
[425801600,1781908232000,-539.07,0.00016428,3]
[425801602,1781908232000,-933.84033029,0.00016438,2]
[425801607,1781908232000,-931.34,0.00016438,2]
[425801601,1781908232000,-595.94556971,0.00016438,2]
[425801604,1781908232000,-500.0,0.00016438,2]
[425801605,1781908232000,-500.0,0.00016438,2]
[425801606,1781908232000,-645.51,0.00016438,2]
[425801599,1781908232000,-179.69,0.00016428,3]
[425801590,1781908232000,-158.287802,0.00015826,2]
[425801587,1781908232000,-703.77412748,0.00015635,7]
[425801592,1781908232000,-32669.503697,0.000159,2]
[425801609,1781908232000,-500.0,0.00016438,2]
[425801555,1781908232000,-1114.51852297,0.00013276,2]
[425801562,1781908232000,-1923.6526246,0.00013276,2]
[425801570,1781908232000,-194.563,0.00014695,2]
[425801564,1781908232000,-3064.9346386,0.00014277,2]
[425801566,1781908232000,-300.0,0.00014694,2]
[425801568,1781908232000,-745.0,0.00014695,2]
[425801571,1781908232000,-445.0,0.00014695,2]
[425801573,1781908232000,-295.60136146,0.00014698,2]
[425801575,1781908232000,-152.0,0.00014768,7]
[425801577,1781908232000,-445.34027286,0.00015028,2]
[425801580,1781908232000,-186.518827,0.00015068,2]
[425801593,1781908232000,-326.9485734,0.0001609,2]
[425801583,1781908232000,-703.77412748,0.00015201,7]
[425801585,1781908232000,-600.0,0.00015431,2]
[425801591,1781908232000,-9155.48229183,0.00015872,2]
[425801613,1781908232000,-2734.4,0.00016438,2]
[425801622,1781908232000,-1000.0,0.00016438,2]
[425801615,1781908232000,-503.1,0.00016438,2]
[425801654,1781908232000,-500.0,0.00016438,2]
[425801653,1781908232000,-772.6,0.00016438,2]
[425801656,1781908232000,-38.29643624,0.00016438,2]
[425801658,1781908232000,-467.14956065,0.00016438,2]
[425801661,1781908232000,-500.0,0.00016438,2]
[425801660,1781908232000,-739.75,0.00016438,2]
[425801649,1781908232000,-500.0,0.00016438,2]
[425801663,1781908232000,-817.76,0.00016438,2]